bitfinex-derivatives/quotes_BTCF0:USTF0_20260207
["timestamp","ask_amount","ask_price","bid_price","bid_amount"]
[1770425978720,0.53325675,70080.0,70050.0,0.014286]
[1770425979215,0.53325675,70080.0,70050.0,0.52758153]
[1770425979623,0.53325675,70080.0,70052.0,0.014286]
[1770425980213,0.42069443,70107.0,70048.0,0.51867566]
[1770425980214,0.014282,70073.0,70048.0,0.51867566]
[1770425980417,0.56275717,70072.0,70048.0,0.51867566]
[1770425981610,0.56275717,70072.0,70049.0,0.014286]
[1770425982017,0.56275717,70072.0,70049.0,0.52227501]
[1770425982218,0.56275717,70072.0,70049.0,0.50798901]
[1770425982611,0.014278,70089.0,70042.0,0.52227701]
[1770425982612,0.56275717,70070.0,70042.0,0.52227701]
[1770425982924,0.56275717,70070.0,70046.0,0.014287]
[1770425984123,0.56275717,70070.0,70042.0,0.50798901]
[1770425984124,0.56275717,70070.0,70042.0,0.52227701]
[1770425984823,0.56275717,70070.0,70044.0,0.014287]
[1770425986624,0.014282,70069.0,70044.0,0.014287]
[1770425986923,0.56275717,70064.0,70028.0,0.11382706]
[1770425987126,0.56275717,70064.0,70025.0,0.014291]
[1770425987127,0.56275717,70060.0,70036.0,0.51643277]
[1770425987321,0.56275717,70060.0,70036.0,0.53072177]
[1770425987919,0.56275717,70060.0,70038.0,0.014288]
[1770425988327,0.56275717,70060.0,70038.0,0.52596254]
[1770425988926,0.56275717,70060.0,70040.0,0.014288]
[1770425992426,0.56275717,70060.0,70040.0,0.5249268]
[1770426000331,0.56275717,70060.0,70040.0,0.5106388]
[1770426003035,0.56275717,70056.0,70034.0,0.17091905]
[1770426003240,0.56275717,70056.0,70032.0,0.11413005]
[1770426003436,0.57704117,70056.0,70030.0,0.11413005]
[1770426004240,0.56275717,70056.0,70030.0,0.11413005]
[1770426004441,0.56275717,70069.0,70038.0,0.64866892]
[1770426004641,0.56275717,70077.0,70058.0,0.53906632]
[1770426005042,0.56275717,70077.0,70058.0,0.55334932]
[1770426005243,0.014278,70085.0,70058.0,0.53906632]
[1770426005437,0.56275717,70084.0,70058.0,0.53906632]
[1770426005951,0.56984625,70082.0,70058.0,0.53906632]
[1770426007149,0.56984625,70101.0,70061.0,0.53069487]
[1770426007350,0.56984625,70097.0,70066.0,0.53069487]
[1770426007554,0.56984625,70090.0,70066.0,0.53069487]
[1770426007850,0.56984625,70075.0,70052.0,0.53069487]
[1770426008040,0.54099742,70073.0,70052.0,0.53069487]
[1770426013553,0.54099742,70073.0,70048.0,0.54650111]
[1770426019359,0.01428,70074.0,70048.0,0.54650111]
[1770426019360,0.54099742,70071.0,70048.0,0.54650111]
[1770426020058,0.54099742,70069.0,70046.0,0.11413005]
[1770426020558,0.54099742,70069.0,70046.0,0.66011893]
[1770426022462,0.54099742,70069.0,70046.0,0.54598888]
[1770426024261,0.54099742,70076.0,70049.0,0.54520144]
[1770426024461,0.54099742,70074.0,70049.0,0.54520144]
[1770426028168,0.54099742,70072.0,70049.0,0.54520144]
[1770426032464,0.54099742,70072.0,70049.0,0.65933149]
[1770426033269,0.54099742,70072.0,70051.0,0.54221372]
[1770426034176,0.54099742,70072.0,70051.0,0.65634377]
[1770426037368,0.54099742,70072.0,70053.0,0.54261252]
[1770426039163,0.54606437,70076.0,70053.0,0.65674257]
[1770426039371,0.53178437,70073.0,70053.0,0.65674257]
[1770426039768,0.2379,70054.0,70053.0,0.65674257]
[1770426039974,0.22906424,70054.0,70053.0,0.65674257]
[1770426040172,0.05113387,70054.0,70053.0,0.65674257]
[1770426042378,0.05113387,70054.0,70053.0,0.54261252]
[1770426043278,0.04813387,70054.0,70053.0,0.54261252]
[1770426043780,0.04813387,70054.0,70047.0,0.05026495]
[1770426043974,0.04813387,70054.0,70034.0,0.014288]
[1770426043975,0.57991824,70054.0,70037.0,0.17121419]
[1770426044170,0.57991824,70054.0,70035.0,0.75318454]
[1770426044366,0.0481,70038.0,70035.0,0.58197035]
[1770426044576,0.0481,70038.0,70029.0,0.75318454]
[1770426044775,0.53178437,70033.0,70013.0,0.21391607]
[1770426045082,0.0481,70026.0,70008.0,0.58697035]
[1770426045380,0.0481,70013.0,70008.0,0.58197035]
[1770426045575,0.53178437,70031.0,70008.0,0.58197035]
[1770426045777,0.53178437,70031.0,70009.0,0.59626335]
[1770426046278,0.53178437,70031.0,70009.0,0.58197035]
[1770426047685,0.53178437,70031.0,70009.0,0.59626335]
[1770426048072,0.53178437,70031.0,70009.0,0.58197035]
[1770426059588,0.53178437,70023.0,70000.0,0.55560441]
[1770426059891,0.53178437,70017.0,69992.0,0.55560441]
[1770426060987,0.14292865,70040.0,69992.0,0.55560441]
[1770426060988,0.53178437,70029.0,70009.0,0.56279812]
[1770426061586,0.53178437,70043.0,70009.0,0.56279812]
[1770426061785,0.06308,70078.0,70024.0,0.56279812]
[1770426061786,0.53178437,70054.0,70024.0,0.56279812]
[1770426061985,0.53178437,70054.0,70030.0,0.56279812]
[1770426062897,0.54606737,70061.0,70032.0,0.56471968]
[1770426063191,0.54606737,70059.0,70032.0,0.56471968]
[1770426063394,0.53178437,70048.0,70024.0,0.56471968]
[1770426069096,0.53178437,70048.0,70015.0,0.014292]
[1770426069097,0.53564877,70044.0,70015.0,0.52761722]
[1770426071297,0.53564877,70044.0,70017.0,0.52761722]
[1770426071596,0.53564877,70044.0,70019.0,0.52761722]
[1770426076504,0.014287,70041.0,70019.0,0.52761722]
[1770426076704,0.54993477,70044.0,70019.0,0.52761722]
[1770426080309,0.53564877,70041.0,70019.0,0.52761722]
[1770426081000,0.53564877,70047.0,70019.0,0.52761722]
[1770426081309,0.53564877,70045.0,70021.0,0.52761722]
[1770426083808,0.53564877,70043.0,70019.0,0.17121054]
[1770426084006,0.53564877,70043.0,70018.0,0.17121054]
[1770426084611,0.53564877,70041.0,70016.0,0.52761722]
[1770426085110,0.53564877,70036.0,70016.0,0.52761722]
[1770426086201,0.53564877,70036.0,70012.0,0.17121054]
[1770426086507,0.53564877,70036.0,70012.0,0.69882776]
[1770426087010,0.53564877,70036.0,70013.0,0.52761722]
[1770426087908,0.014283,70059.0,70008.0,0.17121054]
[1770426087909,0.53564877,70028.0,70008.0,0.17121054]
[1770426088107,0.53564877,70026.0,70006.0,0.52761722]
[1770426088910,0.54993877,70026.0,70006.0,0.52761722]
[1770426089208,0.53564877,70023.0,69999.0,0.52761722]
[1770426089605,0.54993877,70023.0,69999.0,0.52761722]
[1770426090011,0.53564877,70020.0,69999.0,0.52761722]
[1770426090209,0.53564877,70013.0,69987.0,0.52761722]
[1770426090403,0.53564877,70020.0,69990.0,0.54191422]
[1770426090610,0.53564877,70020.0,69977.0,0.0143]
[1770426090611,0.53564877,70020.0,69995.0,0.52761722]
[1770426091415,0.53564877,70016.0,69995.0,0.52761722]
[1770426092902,0.15744741,70040.0,69995.0,0.52761722]
[1770426092903,0.53564877,70027.0,69995.0,0.52761722]
[1770426093103,0.53564877,70027.0,69999.0,0.52761722]
[1770426096615,0.57986881,70023.0,69999.0,0.52761722]
[1770426098211,0.57986881,70030.0,69999.0,0.52761722]
[1770426098418,0.57986881,70030.0,70003.0,0.56674406]
[1770426098719,0.57986881,70036.0,70005.0,0.56825488]
[1770426098924,0.57986881,70043.0,70016.0,0.56825488]
[1770426100226,0.57986881,70037.0,70010.0,0.17101846]
[1770426100419,0.59415581,70037.0,70010.0,0.56825488]
[1770426100825,0.57986881,70037.0,70010.0,0.56825488]
[1770426102021,0.21457641,70060.0,70007.0,0.18531146]
[1770426102022,0.57986881,70053.0,70014.0,0.56163609]
[1770426102220,0.59415281,70053.0,70024.0,0.56163609]
[1770426102922,0.57986881,70053.0,70024.0,0.56163609]
[1770426103419,0.57986881,70065.0,70034.0,0.56707847]
[1770426103618,0.42069443,70080.0,70037.0,0.56707847]
[1770426103821,0.57986881,70073.0,70046.0,0.56707847]
[1770426104428,0.57986881,70073.0,70048.0,0.56707847]
[1770426104628,0.59414681,70081.0,70048.0,0.56707847]
[1770426106022,0.57986881,70075.0,70048.0,0.56707847]
[1770426108930,0.014279,70079.0,70048.0,0.56707847]
[1770426109432,0.59414781,70079.0,70048.0,0.56707847]
[1770426111230,0.014279,70077.0,70048.0,0.56707847]
[1770426111430,0.57986881,70076.0,70048.0,0.56707847]
[1770426112228,0.57986881,70091.0,70061.0,0.57142403]
[1770426112628,0.57986881,70100.0,70068.0,0.57142403]
[1770426112834,0.57986881,70119.0,70082.0,0.58002627]
[1770426113236,0.57986881,70119.0,70085.0,0.59430327]
[1770426113433,0.57986881,70119.0,70085.0,0.58002627]
[1770426113835,0.57986881,70126.0,70102.0,0.58002627]
[1770426115935,0.57986881,70154.0,70104.0,0.58002627]
[1770426116233,0.57986881,70154.0,70084.0,0.014278]
[1770426116234,0.57986881,70154.0,70107.0,0.58002627]
[1770426117037,0.57986881,70154.0,70111.0,0.58002627]
[1770426117238,0.57986881,70154.0,70113.0,0.58002627]
[1770426117429,0.57986881,70146.0,70113.0,0.58002627]
[1770426118932,0.57986881,70146.0,70113.0,0.59429827]
[1770426119839,0.57986881,70146.0,70119.0,0.58002627]
[1770426120029,0.57986881,70146.0,70121.0,0.58002627]
[1770426120233,0.57986881,70154.0,70123.0,0.58002627]
[1770426120433,0.57986881,70154.0,70128.0,0.58002627]
[1770426120634,0.0002,70166.0,70128.0,0.58002627]
[1770426120934,0.58006881,70158.0,70128.0,0.58002627]
[1770426121142,0.58006881,70158.0,70108.0,0.58002627]
[1770426121841,0.57986881,70158.0,70097.0,0.58002627]
[1770426122038,0.57986881,70139.0,70085.0,0.58002627]
[1770426122238,0.57986881,70139.0,70093.0,0.58002627]
[1770426122832,0.57986881,70139.0,70085.0,0.58002627]
[1770426123032,0.57986881,70119.0,70069.0,0.58002627]
[1770426123337,0.57986881,70119.0,70078.0,0.58002627]
[1770426123532,0.57986881,70119.0,70081.0,0.59430427]
[1770426123743,0.57986881,70119.0,70081.0,0.58002627]
[1770426124143,0.57986881,70119.0,70089.0,0.58002627]
[1770426125235,0.57986881,70119.0,70066.0,0.58002627]
[1770426125444,0.57986881,70119.0,70066.0,0.59430727]
[1770426125636,0.57986881,70119.0,70070.0,0.528722]
[1770426126538,0.57986881,70119.0,70073.0,0.01428]
[1770426126746,0.57986881,70119.0,70073.0,0.528722]
[1770426130849,0.57986881,70119.0,70054.0,0.014284]
[1770426130850,0.57986881,70119.0,70082.0,0.57685497]
[1770426131053,0.57986881,70119.0,70084.0,0.57685497]
[1770426131642,0.57986881,70119.0,70087.0,0.57685497]
[1770426131850,0.57986881,70119.0,70089.0,0.57685497]
[1770426132642,0.57986881,70119.0,70091.0,0.57685497]
[1770426132849,0.57986881,70119.0,70093.0,0.57685497]
[1770426133442,0.53368393,70127.0,70094.0,0.014276]
[1770426133645,0.53368393,70127.0,70095.0,0.57685497]
[1770426135153,0.53368393,70127.0,70097.0,0.57685497]
[1770426135448,0.063,70145.0,70081.0,0.014278]
[1770426135449,0.53368393,70135.0,70108.0,0.57685497]
[1770426135842,0.53368393,70144.0,70112.0,0.57685497]
[1770426136348,0.53368393,70144.0,70114.0,0.57685497]
[1770426136744,0.53368393,70144.0,70105.0,0.57685497]
[1770426136947,0.53368393,70144.0,70105.0,0.59112797]
[1770426138045,0.53368393,70144.0,70099.0,0.57685497]
[1770426138246,0.53368393,70144.0,70090.0,0.57685497]
[1770426140047,0.53368393,70129.0,70080.0,0.57685497]
[1770426142250,0.53368393,70129.0,70082.0,0.57685497]
[1770426143145,0.53368393,70129.0,70084.0,0.57685497]
[1770426143550,0.53368393,70129.0,70077.0,0.57685497]
[1770426146258,0.53368393,70128.0,70077.0,0.57685497]
[1770426146759,0.53368393,70128.0,70069.0,0.57685497]
[1770426147561,0.53368393,70119.0,70069.0,0.57685497]
[1770426152564,0.53368393,70119.0,70061.0,0.57685497]
[1770426152765,0.53368393,70117.0,70061.0,0.57685497]
[1770426153265,0.53368393,70111.0,70061.0,0.57685497]
[1770426153961,0.53368393,70099.0,70042.0,0.57685497]
[1770426154660,0.014282,70065.0,70042.0,0.57685497]
[1770426154860,0.014282,70063.0,70042.0,0.57685497]
[1770426155065,0.014282,70066.0,70042.0,0.57685497]
[1770426155257,0.54796593,70064.0,70042.0,0.57685497]
[1770426155765,0.54796593,70064.0,70026.0,0.11393146]
[1770426155766,0.58034622,70056.0,70024.0,0.57022069]
[1770426155957,0.58034622,70054.0,70024.0,0.57022069]
[1770426156163,0.58034622,70058.0,70024.0,0.57022069]
[1770426156461,0.59462922,70057.0,70024.0,0.57022069]
[1770426156664,0.014279,70078.0,70024.0,0.57022069]
[1770426156665,0.58034622,70054.0,70024.0,0.57022069]
[1770426156863,0.58034622,70052.0,70024.0,0.57022069]
[1770426157058,0.014285,70047.0,70024.0,0.57022069]
[1770426157765,0.59463122,70050.0,70024.0,0.57022069]
[1770426158570,0.59463122,70047.0,70024.0,0.57022069]
[1770426158766,0.58034622,70042.0,70011.0,0.57022069]
[1770426159966,0.58034622,70042.0,70011.0,0.58451369]
[1770426161073,0.58034622,70042.0,70013.0,0.014292]
[1770426161266,0.58034622,70042.0,70014.0,0.57022069]
[1770426163660,0.58034622,70042.0,70016.0,0.57022069]
[1770426169276,0.58034622,70042.0,69985.0,0.014298]
[1770426169277,0.58034622,70036.0,70004.0,0.57022069]
[1770426169476,0.58034622,70032.0,70004.0,0.57022069]
[1770426171376,0.014289,70032.0,70004.0,0.57022069]
[1770426171582,0.42069443,70067.0,69979.0,0.014299]
[1770426171583,0.58034622,70066.0,70040.0,0.014287]
[1770426171874,0.014278,70084.0,70043.0,0.57022069]
[1770426172080,0.14282252,70090.0,70053.0,0.57022069]
[1770426172081,0.58034622,70085.0,70053.0,0.57022069]
[1770426172276,0.14282252,70090.0,70040.0,0.57022069]
[1770426172277,0.58034622,70069.0,70040.0,0.57022069]
[1770426173082,0.58034622,70067.0,70040.0,0.57022069]
[1770426173576,0.014278,70084.0,70030.0,0.57022069]
[1770426173577,0.58034622,70063.0,70030.0,0.57022069]
[1770426173874,0.58034622,70052.0,70021.0,0.57022069]
[1770426174471,0.59463022,70052.0,70021.0,0.57022069]
[1770426174671,0.58034622,70052.0,70021.0,0.57022069]
[1770426174877,0.58034622,70052.0,70021.0,0.58451169]
[1770426175073,0.58034622,70052.0,70021.0,0.57022069]
[1770426175281,0.58034622,70050.0,70021.0,0.57022069]
[1770426178680,0.59463122,70047.0,70021.0,0.57022069]
[1770426178981,0.58034622,70047.0,70021.0,0.57022069]
[1770426179782,0.58034622,70047.0,70021.0,0.58451069]
[1770426180173,0.58034622,70047.0,70021.0,0.57022069]
[1770426182081,0.58034622,70047.0,70001.0,0.28331457]
[1770426182082,0.58034622,70039.0,70013.0,0.57022069]
[1770426182776,0.58034622,70039.0,69999.0,0.28331457]
[1770426182777,0.58034622,70049.0,70007.0,0.57022069]
[1770426182976,0.59463422,70037.0,70010.0,0.57022069]
[1770426183181,0.58034622,70035.0,70010.0,0.57022069]
[1770426183681,0.14282252,70050.0,70005.0,0.11393146]
[1770426183682,0.58034622,70030.0,70005.0,0.11393146]
[1770426183871,0.58034622,70027.0,70003.0,0.11393146]
[1770426184074,0.59463622,70025.0,70002.0,0.57022069]
[1770426184581,0.58034622,70021.0,69999.0,0.11393146]
[1770426184881,0.58034622,70021.0,69994.0,0.57022069]
[1770426185675,0.56204786,70020.0,69994.0,0.57022069]
[1770426185977,0.56204786,70020.0,69985.0,0.2103449]
[1770426185978,0.54775686,70010.0,69985.0,0.54099461]
[1770426186882,0.54775686,70008.0,69981.0,0.12802626]
[1770426187078,0.54775686,70008.0,69981.0,0.0140948]
[1770426187779,0.54775686,70008.0,69981.0,0.58446101]
[1770426188176,0.54036202,70016.0,69984.0,0.014298]
[1770426188478,0.54036202,70016.0,69985.0,0.57036621]
[1770426188679,0.54036202,70024.0,69992.0,0.57036621]
[1770426189278,0.014286,70042.0,69992.0,0.57036621]
[1770426189279,0.54036202,70022.0,69992.0,0.57036621]
[1770426189778,0.54036202,70020.0,69992.0,0.57036621]
[1770426192288,0.54036202,70013.0,69984.0,0.68429767]
[1770426192484,0.54036202,70011.0,69984.0,0.57036621]
[1770426194189,0.54036202,70018.0,69984.0,0.57036621]
[1770426195486,0.55465202,70026.0,69994.0,0.57036621]
[1770426195792,0.014291,70022.0,69994.0,0.57036621]
[1770426195989,0.55465202,70025.0,69994.0,0.57036621]
[1770426196389,0.55465202,70025.0,69994.0,0.58466221]
[1770426196390,0.54036202,70025.0,69994.0,0.58466221]
[1770426196790,0.014289,70029.0,69994.0,0.58466221]
[1770426196999,0.014288,70032.0,69998.0,0.57036621]
[1770426197206,0.55465102,70030.0,69998.0,0.57036621]
[1770426197395,0.54036202,70025.0,69998.0,0.57036621]
[1770426197595,0.55465202,70024.0,69998.0,0.57036621]
[1770426197901,0.014291,70020.0,69998.0,0.57036621]
[1770426198102,0.54036202,70017.0,69990.0,0.57036621]
[1770426198295,0.54036202,70017.0,69982.0,0.57036621]
[1770426199499,0.54036202,70012.0,69982.0,0.57036621]
[1770426199794,0.54036202,70005.0,69982.0,0.57036621]
[1770426202709,0.54036202,69998.0,69964.0,0.58466821]
[1770426203001,0.54036202,69996.0,69964.0,0.57036621]
[1770426203799,0.54036202,69993.0,69964.0,0.57036621]
[1770426205103,0.54036202,70001.0,69969.0,0.57036621]
[1770426205305,0.54036202,70001.0,69971.0,0.57036621]
[1770426205500,0.54036202,70001.0,69974.0,0.57036621]
[1770426209002,0.42069443,70028.0,69956.0,0.2103449]
[1770426209003,0.54036202,70009.0,69980.0,0.57036621]
[1770426209200,0.54036202,70009.0,69962.0,0.2246479]
[1770426209201,0.55465302,70018.0,69984.0,0.57036621]
[1770426209403,0.54036202,70018.0,69990.0,0.57036621]
[1770426209699,0.54036202,70018.0,69992.0,0.57036621]
[1770426210105,0.54036202,70018.0,69964.0,0.35369766]
[1770426210106,0.54036202,70015.0,69982.0,0.57036621]
[1770426210404,0.54036202,70004.0,69975.0,0.57036621]
[1770426210599,0.54036202,69999.0,69975.0,0.57036621]
[1770426210996,0.54036202,69999.0,69967.0,0.57036621]
[1770426211400,0.54036202,69997.0,69967.0,0.57036621]
[1770426212507,0.54036202,69997.0,69969.0,0.57036621]
[1770426213702,0.014294,70004.0,69971.0,0.57036621]
[1770426214002,0.54036202,70001.0,69973.0,0.57036621]
[1770426216499,0.54036202,70001.0,69952.0,0.2103449]
[1770426216500,0.56375356,70029.0,70004.0,0.5282505]
[1770426217907,0.56375356,70040.0,70009.0,0.5425435]
[1770426218102,0.56375356,70040.0,70013.0,0.5282505]
[1770426218307,0.56375356,70040.0,70016.0,0.5425425]
[1770426218503,0.56375356,70049.0,70025.0,0.5425405]
[1770426218709,0.56375356,70049.0,70025.0,0.5282505]
[1770426218899,0.56375356,70049.0,70002.0,0.014294]
[1770426218900,0.56375356,70044.0,70012.0,0.5282505]
[1770426219099,0.57804056,70038.0,70012.0,0.5282505]
[1770426219307,0.56375356,70035.0,69994.0,0.5282505]
[1770426220009,0.56375356,70033.0,70004.0,0.5282505]
[1770426222109,0.56375356,70033.0,69999.0,0.5425455]
[1770426222723,0.56375356,70025.0,69999.0,0.5282505]
[1770426223009,0.56375356,70020.0,69999.0,0.5282505]
[1770426225211,0.56375356,70039.0,70001.0,0.5282505]
[1770426225513,0.56375356,70039.0,70010.0,0.5282505]
[1770426226011,0.56375356,70039.0,70014.0,0.5282505]
[1770426226915,0.56375356,70047.0,70014.0,0.5425425]
[1770426227213,0.56375356,70056.0,70024.0,0.5282505]
[1770426227398,0.56375356,70052.0,70016.0,0.5282505]
[1770426227600,0.56375356,70047.0,70016.0,0.5282505]
[1770426229609,0.1431491,70060.0,70008.0,0.5282505]
[1770426229610,0.56375356,70039.0,70008.0,0.5282505]
[1770426229907,0.56375356,70039.0,70009.0,0.014293]
[1770426230109,0.56375356,70039.0,70009.0,0.5425435]
[1770426230613,0.014284,70054.0,70009.0,0.5425435]
[1770426230614,0.56375356,70035.0,70009.0,0.5282505]
[1770426232207,0.56375356,70035.0,70002.0,0.014294]
[1770426232410,0.56375356,70032.0,70002.0,0.5425455]
[1770426234713,0.57804156,70032.0,70002.0,0.5282505]
[1770426235512,0.014285,70048.0,70002.0,0.5282505]
[1770426235513,0.56375356,70027.0,70002.0,0.5282505]
[1770426239321,0.56375356,70025.0,70002.0,0.5282505]
[1770426241020,0.56375356,70033.0,70006.0,0.5282505]
[1770426241321,0.56375356,70033.0,70009.0,0.5282505]
[1770426243626,0.56375356,70042.0,70012.0,0.5282505]
[1770426243922,0.56375356,70042.0,70014.0,0.5282505]
[1770426245017,0.56375356,70042.0,69918.0,1.27505757]
[1770426245018,0.56375356,70050.0,70022.0,0.5282505]
[1770426246419,0.014286,70044.0,70014.0,0.74182714]
[1770426246624,0.014286,70044.0,70015.0,0.21460272]
[1770426246625,0.57369581,70043.0,70015.0,0.21460272]
[1770426246827,0.57369581,70043.0,70014.0,0.57107651]
[1770426247328,0.57369581,70039.0,70009.0,0.17075063]
[1770426247530,0.57369581,70039.0,70010.0,0.21461804]
[1770426247732,0.57369581,70039.0,70011.0,0.21461804]
[1770426247930,0.57369581,70039.0,70008.0,0.74182714]
[1770426248130,0.57369581,70039.0,70009.0,0.21461989]
[1770426248428,0.57369581,70039.0,70010.0,0.21461989]
[1770426248624,0.57369581,70039.0,70011.0,0.21461989]
[1770426248824,0.57369581,70039.0,70008.0,0.74182714]
[1770426249028,0.57369581,70039.0,70009.0,0.21462002]
[1770426249228,0.57369581,70039.0,70008.0,0.74182714]
[1770426249229,0.57369581,70039.0,70010.0,0.21462002]
[1770426249421,0.57369581,70039.0,70011.0,0.21462002]
[1770426249627,0.57369581,70039.0,70008.0,0.74182714]
[1770426249823,0.42344406,70066.0,70027.0,0.56937996]
[1770426249824,0.57292801,70065.0,70027.0,0.56937996]
[1770426250128,0.57292801,70065.0,70029.0,0.56937996]
[1770426250334,0.57292801,70063.0,70031.0,0.56937996]
[1770426250532,0.57292801,70061.0,70031.0,0.56937996]
[1770426254525,0.57292801,70072.0,70050.0,0.56937996]
[1770426254829,0.57292801,70083.0,70056.0,0.56937996]
[1770426256233,0.57292801,70083.0,70060.0,0.014283]
[1770426256428,0.63600801,70090.0,70060.0,0.58366296]
[1770426256634,0.63600801,70090.0,70060.0,0.56937996]
[1770426257035,0.42344406,70120.0,70044.0,0.014286]
[1770426257036,0.57292801,70098.0,70064.0,0.56937996]
[1770426257237,0.57292801,70098.0,70068.0,0.56937996]
[1770426257441,0.57292801,70098.0,70073.0,0.56937996]
[1770426258636,0.57292801,70098.0,70055.0,0.56937996]
[1770426261340,0.57292801,70087.0,70055.0,0.56937996]
[1770426265047,0.57292801,70087.0,70057.0,0.56937996]
[1770426265246,0.43771906,70101.0,70057.0,0.56937996]
[1770426265247,0.57292801,70085.0,70057.0,0.56937996]
[1770426266746,0.57292801,70100.0,70071.0,0.56937996]
[1770426267348,0.58720301,70100.0,70071.0,0.56937996]
[1770426267548,0.57292801,70100.0,70071.0,0.56937996]
[1770426269546,0.57292801,70100.0,70074.0,0.56937996]
[1770426269750,0.57292801,70108.0,70083.0,0.56937996]
[1770426270748,0.57292801,70108.0,70077.0,0.014279]
[1770426271846,0.57292801,70108.0,70079.0,0.014279]
[1770426272043,0.57292801,70108.0,70080.0,0.56937996]
[1770426273454,0.57292801,70108.0,70081.0,0.58365796]
[1770426275051,0.57292801,70108.0,70081.0,0.56937996]
[1770426275949,0.53608403,70124.0,70093.0,0.53471007]
[1770426276155,0.53608403,70140.0,70093.0,0.53471007]
[1770426276653,0.53608403,70140.0,70101.0,0.53471007]
[1770426277356,0.53608403,70140.0,70111.0,0.53471007]
[1770426279445,0.53608403,70140.0,70107.0,0.014273]
[1770426279651,0.53608403,70119.0,70081.0,0.53471007]
[1770426280252,0.53608403,70119.0,70072.0,0.53471007]
[1770426281757,0.53608403,70099.0,70054.0,0.53471007]
[1770426283354,0.53608403,70108.0,70071.0,0.53471007]
[1770426284553,0.53608403,70108.0,70074.0,0.53471007]
[1770426289463,0.53608403,70117.0,70084.0,0.53471007]
[1770426289664,0.53608403,70117.0,70086.0,0.53471007]
[1770426292465,0.53608403,70139.0,70086.0,0.53471007]
[1770426292763,0.53608403,70139.0,70088.0,0.53471007]
[1770426295565,0.53608403,70138.0,70088.0,0.53471007]
[1770426296369,0.53608403,70137.0,70088.0,0.53471007]
[1770426296866,0.53608403,70137.0,70091.0,0.53471007]
[1770426297368,0.53608403,70137.0,70082.0,0.53471007]
[1770426297570,0.53608403,70119.0,70082.0,0.53471007]
[1770426300073,0.53608403,70132.0,70089.0,0.53471007]
[1770426300670,0.53608403,70132.0,70091.0,0.53471007]
[1770426301567,0.53608403,70132.0,70093.0,0.53471007]
[1770426301769,0.67891736,70140.0,70098.0,0.53471007]
[1770426302075,0.53608403,70140.0,70098.0,0.53471007]
[1770426302267,0.53608403,70129.0,70087.0,0.53471007]
[1770426302669,0.42344406,70126.0,70087.0,0.53471007]
[1770426302972,0.53608403,70125.0,70087.0,0.53471007]
[1770426303267,0.53608403,70124.0,70087.0,0.53471007]
[1770426303971,0.53608403,70120.0,70087.0,0.53471007]
[1770426304172,0.53608403,70120.0,70073.0,0.53471007]
[1770426304469,0.53608403,70115.0,70073.0,0.53471007]
[1770426304675,0.42344406,70113.0,70073.0,0.53471007]
[1770426304874,0.53608403,70112.0,70073.0,0.53471007]
[1770426305272,0.42344406,70113.0,70078.0,0.53471007]
[1770426305467,0.95952809,70118.0,70080.0,0.014278]
[1770426305666,0.95952809,70118.0,70083.0,0.53775507]
[1770426305871,0.42344406,70124.0,70094.0,0.53775507]
[1770426306062,0.42344406,70124.0,70101.0,0.53775507]
[1770426306262,0.56157579,70133.0,70103.0,0.53775507]
[1770426306470,0.97780483,70135.0,70103.0,0.53775507]
[1770426306670,0.42344406,70138.0,70105.0,0.53775507]
[1770426307472,0.42344406,70139.0,70105.0,0.53775507]
[1770426307770,0.42344406,70139.0,70107.0,0.53775507]
[1770426307973,0.42344406,70140.0,70109.0,0.53995783]
[1770426308372,0.42344406,70142.0,70109.0,0.53995783]
[1770426308774,0.53279064,70141.0,70109.0,0.53995783]
[1770426309079,0.42344406,70139.0,70109.0,0.53995783]
[1770426309272,0.9562347,70139.0,70109.0,0.53995783]
[1770426309577,0.53279064,70139.0,70109.0,0.53995783]
[1770426310973,0.53279064,70139.0,70077.0,0.014279]
[1770426310974,0.53279064,70139.0,70101.0,0.53995783]
[1770426311271,0.53279064,70133.0,70101.0,0.53995783]
[1770426311476,0.53279064,70132.0,70101.0,0.53995783]
[1770426312271,0.56157579,70142.0,70101.0,0.53995783]
[1770426312272,0.53279064,70129.0,70101.0,0.53995783]
[1770426312869,0.53279064,70129.0,70087.0,0.53995783]
[1770426313271,0.53279064,70129.0,70075.0,0.53995783]
[1770426313478,0.53279064,70129.0,70077.0,0.53995783]
[1770426314082,0.53279064,70109.0,70077.0,0.53995783]
[1770426320183,0.53279064,70109.0,70069.0,0.53995783]
[1770426320789,0.53279064,70109.0,70060.0,0.53995783]
[1770426321575,0.14283333,70110.0,70060.0,0.53995783]
[1770426321878,0.53279064,70098.0,70060.0,0.53995783]
[1770426322082,0.54706864,70085.0,70060.0,0.53995783]
[1770426322379,0.014278,70083.0,70060.0,0.53995783]
[1770426322688,0.54706864,70083.0,70060.0,0.53995783]
[1770426322882,0.53279064,70069.0,70043.0,0.53995783]
[1770426323186,0.014282,70064.0,70043.0,0.53995783]
[1770426323779,0.014281,70068.0,70043.0,0.53995783]
[1770426324082,0.54707164,70068.0,70043.0,0.53995783]
[1770426325475,0.014282,70062.0,70035.0,0.53995783]
[1770426325882,0.53279064,70064.0,70035.0,0.53995783]
[1770426327779,0.53279064,70081.0,70038.0,0.53995783]
[1770426327976,0.014279,70077.0,70043.0,0.53995783]
[1770426328186,0.54706964,70081.0,70045.0,0.53995783]
[1770426328779,0.54706964,70081.0,70047.0,0.53995783]
[1770426329191,0.014279,70079.0,70047.0,0.53995783]
[1770426330092,0.53279064,70081.0,70047.0,0.53995783]
[1770426330286,0.014279,70080.0,70047.0,0.53995783]
[1770426330688,0.014274,70102.0,70049.0,0.53995783]
[1770426330689,0.014278,70083.0,70049.0,0.53995783]
[1770426330886,0.014278,70085.0,70055.0,0.53995783]
[1770426331686,0.014278,70085.0,70050.0,0.014285]
[1770426331687,0.53279064,70099.0,70059.0,0.53995783]
[1770426331893,0.014275,70098.0,70063.0,0.53995783]
[1770426332093,0.014275,70098.0,70065.0,0.53995783]
[1770426332486,0.53279064,70099.0,70067.0,0.53995783]
[1770426332887,0.53279064,70099.0,70069.0,0.53995783]
[1770426333084,0.14289685,70120.0,70069.0,0.53995783]
[1770426333085,0.014276,70093.0,70069.0,0.53995783]
[1770426333285,0.53279064,70088.0,70060.0,0.53995783]
[1770426335193,0.54706764,70088.0,70060.0,0.53995783]
[1770426335394,0.014278,70086.0,70060.0,0.53995783]
[1770426335590,0.53279064,70088.0,70060.0,0.53995783]
[1770426336196,0.15717185,70100.0,70060.0,0.53995783]
[1770426336197,0.56223183,70084.0,70060.0,0.53995783]
[1770426336395,0.56223183,70080.0,70052.0,0.5727803]
[1770426337100,0.56223183,70078.0,70052.0,0.5727803]
[1770426338192,0.56223183,70093.0,70055.0,0.5727803]
[1770426338391,0.56223183,70093.0,70057.0,0.5727803]
[1770426338392,0.014277,70091.0,70057.0,0.5727803]
[1770426338588,0.014277,70091.0,70059.0,0.5727803]
[1770426339595,0.56223183,70103.0,70068.0,0.5727803]
[1770426339897,0.57650583,70103.0,70068.0,0.5870613]
[1770426340099,0.56223183,70103.0,70071.0,0.5727803]
[1770426340695,0.014276,70091.0,70071.0,0.5727803]